bitfinex-derivatives/quotes_SOLF0:USTF0_20250820
["timestamp","ask_amount","ask_price","bid_price","bid_amount"]
[1755701118568,4.79948264,181.76,181.62,2.86]
[1755701119274,4.79948264,181.72,181.62,2.86]
[1755701119472,5.5048,181.66,181.62,8.3657]
[1755701119676,4.79948264,181.72,181.56,2.86]
[1755701119876,4.79948264,181.72,181.57,2.86]
[1755701120064,4.79948264,181.72,181.65,5.5046]
[1755701120264,4.79948264,181.72,181.57,2.86]
[1755701120569,5.5031,181.71,181.67,5.504]
[1755701120778,84.26995773,181.77,181.67,2.86]
[1755701121569,5.502,181.75,181.67,2.86]
[1755701121771,4.79948264,181.82,181.67,2.86]
[1755701122075,5.5016,181.76,181.72,2.86]
[1755701122373,154.81948264,181.82,181.63,9.28078535]
[1755701122374,154.81948264,181.82,181.67,2.86]
[1755701122574,5.5024,181.74,181.7,5.5032]
[1755701122973,5.5024,181.74,181.67,2.86]
[1755701123165,5.5024,181.74,181.69,5.5036]
[1755701123374,154.81948264,181.82,181.64,2.86]
[1755701123375,154.77948264,181.82,181.64,2.86]
[1755701123874,154.77948264,181.82,181.73,5.5023]
[1755701124073,154.77948264,181.82,181.69,2.86]
[1755701124275,149.98,181.82,181.73,5.5022]
[1755701124475,149.98,181.82,181.69,2.86]
[1755701124872,4.79948264,181.8,181.69,2.86]
[1755701125270,5.5021,181.75,181.71,5.503]
[1755701125772,149.9,181.8,181.64,2.99]
[1755701126272,370.1,181.83,181.67,4.79948264]
[1755701126471,519.98,181.83,181.68,2.99]
[1755701126874,149.88,181.83,181.68,2.99]
[1755701127276,5.5007,181.79,181.75,5.5018]
[1755701127582,149.86,181.85,181.72,2.99]
[1755701127871,149.86,181.85,181.76,5.5014]
[1755701128270,5.5002,181.81,181.77,5.501]
[1755701128467,5.5002,181.81,181.77,8.491]
[1755701128678,5.5002,181.81,181.77,2.99]
[1755701129080,5.5002,181.81,181.63,6.18543526]
[1755701129081,0.95742486,181.89,181.76,2.99]
[1755701129379,4.79948264,181.9,181.76,2.99]
[1755701129380,149.8,181.9,181.76,2.99]
[1755701130079,149.78,181.92,181.76,2.99]
[1755701130273,149.78,181.92,181.84,5.4989]
[1755701130469,369.94,181.93,181.81,2.99]
[1755701130679,5.4964,181.93,181.81,2.99]
[1755701130869,149.78,181.96,181.81,2.99]
[1755701131372,149.78,181.96,181.85,2.99]
[1755701131577,369.88,182.06,181.85,2.99]
[1755701131779,149.72,182.05,181.85,2.99]
[1755701131982,154.51948264,182.05,181.88,2.99]
[1755701132175,149.72,182.05,181.88,2.99]
[1755701132373,5.4942,182.01,181.95,5.4956]
[1755701132577,5.4942,182.01,181.87,4.79948264]
[1755701132578,149.72,182.05,181.92,2.99]
[1755701132979,374.67948264,182.06,181.92,2.99]
[1755701133179,149.72,182.05,181.92,2.99]
[1755701133475,369.88,182.06,181.92,2.99]
[1755701133882,369.88,182.06,181.98,5.4948]
[1755701134080,369.88,182.06,181.96,2.99]
[1755701134778,369.88,182.06,181.91,2.99]
[1755701134986,374.67948264,182.06,181.91,2.99]
[1755701135180,369.88,182.06,181.91,2.99]
[1755701136183,149.6,182.12,181.99,2.99]
[1755701136582,149.6,182.12,182.03,5.4933]
[1755701137082,154.39948264,182.12,181.99,2.99]
[1755701137286,4.79948264,182.11,181.99,2.99]
[1755701137681,4.79948264,182.11,181.94,2.99]
[1755701138282,369.7,182.19,181.93,2.99]
[1755701138283,4.79948264,182.1,181.93,2.99]
[1755701138486,149.52,182.09,181.93,2.99]
[1755701138689,149.52,182.09,181.96,5.4954]
[1755701138888,154.31948264,182.09,181.93,2.99]
[1755701139389,4.79948264,182.05,181.93,2.99]
[1755701139585,154.29948264,182.05,181.93,2.99]
[1755701139886,4.79948264,182.09,181.92,2.99]
[1755701140283,149.48,182.1,181.92,2.99]
[1755701140884,8.08557937,182.09,181.92,2.99]
[1755701141281,8.08557937,182.09,181.9,5.4972]
[1755701141483,8.08557937,182.04,181.87,2.99]
[1755701142484,8.08557937,182.05,181.87,2.99]
[1755701142890,8.08557937,182.05,181.94,5.4959]
[1755701143091,8.08557937,182.05,181.87,2.99]
[1755701143396,8.08557937,182.05,181.89,5.4975]
[1755701143585,8.08557937,182.0,181.87,2.99]
[1755701143785,149.36,181.99,181.82,2.99]
[1755701143993,8.08557937,182.0,181.82,2.99]
[1755701144392,149.34,181.99,181.82,2.99]
[1755701144786,8.08557937,182.0,181.82,2.99]
[1755701144987,149.34,181.99,181.82,2.99]
[1755701145393,8.08557937,181.95,181.82,2.99]
[1755701145787,8.08557937,181.95,181.72,2.99]
[1755701145987,8.08557937,181.9,181.77,5.501]
[1755701146290,157.40557937,181.9,181.72,2.99]
[1755701146491,157.40557937,181.9,181.79,5.5006]
[1755701146691,369.36,181.93,181.71,2.99]
[1755701146891,149.3,181.92,181.71,2.99]
[1755701147192,149.3,181.92,181.73,2.99]
[1755701148293,149.3,181.92,181.8,2.99]
[1755701148595,369.36,181.93,181.8,2.99]
[1755701149093,149.28,181.97,181.8,2.99]
[1755701149990,16.52,182.02,181.8,2.99]
[1755701150199,149.28,182.01,181.8,2.99]
[1755701150392,165.8,182.01,181.81,62.0]
[1755701150699,165.8,182.01,181.8,2.99]
[1755701150892,24.60557937,181.98,181.8,2.99]
[1755701151399,24.60557937,181.98,181.86,5.4984]
[1755701151698,16.52,181.98,181.8,2.99]
[1755701151899,149.28,182.01,181.8,2.99]
[1755701152198,149.28,182.01,181.81,8.08557937]
[1755701152499,149.28,182.01,181.82,2.99]
[1755701153293,149.28,182.01,181.91,2.99]
[1755701153693,149.28,182.01,181.96,5.4954]
[1755701153996,149.28,182.01,181.91,2.99]
[1755701154198,149.28,182.01,181.95,5.4958]
[1755701154396,149.28,182.01,181.91,2.99]
[1755701154792,149.28,182.01,181.95,5.4957]
[1755701154991,149.28,182.01,181.91,2.99]
[1755701155191,149.28,182.01,181.95,5.4958]
[1755701155397,149.28,182.01,181.91,2.99]
[1755701156394,149.28,182.01,181.98,5.4948]
[1755701156596,149.28,182.01,181.94,2.87]
[1755701157294,149.2,182.05,181.94,2.87]
[1755701159392,149.2,182.05,181.96,5.4955]
[1755701159598,149.2,182.05,181.94,2.87]
[1755701160296,4.78443379,182.04,181.87,2.87]
[1755701160700,4.78443379,182.0,181.87,2.87]
[1755701160902,149.12,181.99,181.9,5.4973]
[1755701161097,149.12,181.99,181.87,2.87]
[1755701161296,98.71126696,182.1,181.87,7.65443379]
[1755701161297,4.78443379,182.06,181.87,7.65443379]
[1755701161504,149.12,182.05,181.88,2.87]
[1755701162792,82.19126696,182.1,181.88,2.87]
[1755701162996,149.08,182.09,181.92,2.87]
[1755701163193,149.08,182.09,181.92,64.87]
[1755701163400,149.08,182.09,181.93,2.87]
[1755701163599,149.08,182.09,181.97,5.4949]
[1755701163800,149.08,182.09,181.93,2.87]
[1755701164202,149.08,182.09,182.01,5.4938]
[1755701164395,149.08,182.09,181.98,2.87]
[1755701164396,4.78443379,182.08,181.93,2.87]
[1755701164603,4.78443379,182.08,181.98,5.4949]
[1755701164798,153.86443379,182.09,181.93,2.87]
[1755701165702,153.86443379,182.09,181.97,5.4951]
[1755701165904,4.78443379,182.05,181.93,2.87]
[1755701166098,4.78443379,182.05,181.89,2.87]
[1755701166296,4.78443379,182.01,181.89,2.87]
[1755701166596,149.02,182.0,181.89,2.87]
[1755701166795,149.02,182.0,181.88,5.4979]
[1755701167110,4.78443379,181.97,181.84,2.87]
[1755701167693,4.78443379,181.97,181.86,5.4985]
[1755701168001,4.78443379,181.97,181.84,2.87]
[1755701168202,4.78443379,181.93,181.79,2.87]
[1755701168501,148.98,181.92,181.74,2.87]
[1755701168703,4.78443379,181.89,181.74,2.87]
[1755701169006,4.78443379,181.85,181.74,2.87]
[1755701169406,4.78443379,181.85,181.76,5.5014]
[1755701169607,153.74443379,181.88,181.74,2.87]
[1755701170004,148.96,181.88,181.71,2.87]
[1755701170711,4.78443379,181.9,181.73,4.78443379]
[1755701170917,4.78443379,181.9,181.75,2.87]
[1755701171109,148.96,181.91,181.75,2.87]
[1755701171404,4.78443379,181.94,181.75,2.87]
[1755701171606,4.78443379,181.94,181.81,2.87]
[1755701171809,148.94,181.95,181.81,2.87]
[1755701172010,148.94,181.95,181.84,5.4991]
[1755701172217,4.78443379,181.92,181.76,2.87]
[1755701172710,148.94,181.95,181.76,2.87]
[1755701172711,4.78443379,181.88,181.76,2.87]
[1755701173211,4.78443379,181.84,181.71,2.87]
[1755701173408,4.78443379,181.84,181.52,16.53]
[1755701173409,4.78443379,181.8,181.66,2.87]
[1755701173805,4.78443379,181.77,181.66,2.87]
[1755701174000,4.78443379,181.77,181.67,5.5041]
[1755701174199,4.78443379,181.77,181.66,2.87]
[1755701174814,4.78443379,181.81,181.66,2.87]
[1755701175015,4.78443379,181.81,181.74,5.5021]
[1755701175204,4.78443379,181.81,181.66,2.87]
[1755701175402,148.94,181.83,181.66,2.87]
[1755701175807,4.78443379,181.8,181.66,2.87]
[1755701176210,4.78443379,181.8,181.7,2.87]
[1755701176410,148.92,181.83,181.7,2.87]
[1755701177420,148.92,181.83,181.66,2.87]
[1755701177912,8.11045752,181.81,181.66,2.87]
[1755701178411,8.11045752,181.81,181.7,5.5033]
[1755701178707,8.11045752,181.81,181.66,2.87]
[1755701178918,8.11045752,181.81,181.7,5.5033]
[1755701179413,8.11045752,181.81,181.7,5.5032]
[1755701179614,8.11045752,181.81,181.66,2.87]
[1755701180113,8.11045752,181.81,181.7,5.5033]
[1755701180307,148.94,181.8,181.66,2.87]
[1755701180510,148.94,181.8,181.72,5.5026]
[1755701180807,148.94,181.8,181.66,2.87]
[1755701181203,148.94,181.8,181.72,5.5026]
[1755701181403,148.94,181.8,181.66,2.87]
[1755701182516,148.94,181.8,181.56,377.51045752]
[1755701182517,8.11045752,181.76,181.61,2.87]
[1755701183014,8.11045752,181.76,181.57,2.87]
[1755701184117,8.11045752,181.71,181.57,2.87]
[1755701184316,157.03045752,181.71,181.57,8.377]
[1755701184618,157.03045752,181.71,181.54,119.93322203]
[1755701184815,157.03045752,181.71,181.53,5.5083]
[1755701184816,8.11045752,181.66,181.53,5.5083]
[1755701185310,8.11045752,181.66,181.54,5.508]
[1755701185507,8.11045752,181.66,181.52,2.87]
[1755701185708,148.92,181.65,181.52,2.87]
[1755701186216,8.11045752,181.66,181.52,2.87]
[1755701186422,148.92,181.7,181.52,2.87]
[1755701188121,8.11045752,181.67,181.52,2.87]
[1755701189113,148.92,181.66,181.56,5.5076]
[1755701189312,148.92,181.65,181.52,2.87]
[1755701191928,8.11045752,181.63,181.47,2.88]
[1755701192719,8.11045752,181.58,181.47,2.88]
[1755701192920,8.11045752,181.53,181.39,5.5125]
[1755701193121,148.92,181.52,181.36,2.88]
[1755701194025,148.92,181.52,181.38,5.5131]
[1755701194218,148.92,181.52,181.36,2.88]
[1755701194425,148.92,181.52,181.37,5.5133]
[1755701194621,8.11045752,181.48,181.35,0.95859846]
[1755701194822,8.11045752,181.48,181.3,2.88]
[1755701195533,8.11045752,181.48,181.36,5.5135]
[1755701195734,8.11045752,181.48,181.32,2.88]
[1755701195735,157.03045752,181.48,181.32,2.88]
[1755701196727,8.11045752,181.43,181.27,2.88]
[1755701197126,8.11045752,181.43,181.28,5.5159]
[1755701197522,8.11045752,181.43,181.27,2.88]
[1755701198828,8.11045752,181.43,181.29,5.5158]
[1755701199231,8.11045752,181.43,181.27,3.83977495]
[1755701199531,8.11045752,181.38,181.22,2.88]
[1755701199732,148.92,181.37,181.22,2.88]
[1755701199932,148.92,181.39,181.22,2.88]
[1755701200834,5.5135,181.37,181.3,5.5155]
[1755701201031,148.92,181.39,181.29,2.88]
[1755701201931,148.92,181.39,181.24,3.83992056]
[1755701202329,157.03045752,181.39,181.24,3.83992056]
[1755701202735,157.03045752,181.39,181.24,2.88]
[1755701202932,157.03045752,181.39,181.22,2.88]
[1755701203132,157.03045752,181.39,181.23,2.88]
[1755701203829,149.0,181.41,181.23,2.88]
[1755701205033,149.0,181.41,181.22,0.96]
[1755701205034,148.98,181.41,181.3,2.88]
[1755701205536,148.98,181.41,181.3,8.3953]
[1755701205739,148.98,181.41,181.3,2.88]
[1755701206524,148.98,181.41,181.33,5.5146]
[1755701206731,148.98,181.41,181.3,2.88]
[1755701207730,369.94,181.44,181.3,2.88]
[1755701208731,148.98,181.43,181.3,2.88]
[1755701209133,148.98,181.43,181.31,5.5151]
[1755701209337,148.98,181.43,181.3,2.88]
[1755701209935,518.94,181.44,181.3,2.88]
[1755701210330,518.94,181.44,181.34,5.5142]
[1755701210640,518.94,181.44,181.34,2.88]
[1755701210830,518.94,181.44,181.25,2.88]
[1755701211031,527.05045752,181.44,181.25,2.88]
[1755701211544,5.5143,181.34,181.23,62.0]
[1755701211740,148.98,181.38,181.3,2.88]
[1755701212336,5.5139,181.36,181.31,5.5152]
[1755701212538,148.98,181.38,181.24,2.88]
[1755701213037,148.98,181.38,181.31,2.88]
[1755701213441,5.5135,181.37,181.34,2.88]
[1755701213743,148.98,181.43,181.34,2.88]
[1755701213941,5.5127,181.4,181.36,5.5137]
[1755701214239,369.94,181.44,181.36,2.88]
[1755701214439,369.94,181.44,181.25,11.0341]
[1755701214440,518.9,181.44,181.38,2.88]
[1755701214735,148.96,181.48,181.38,2.88]
[1755701215042,148.96,181.48,181.43,5.5116]
[1755701215043,5.5101,181.48,181.43,5.5116]
[1755701215342,148.96,181.5,181.38,2.88]
[1755701215536,370.52,181.54,181.38,2.88]
[1755701215730,148.96,181.53,181.38,2.88]
[1755701216141,5.5097,181.5,181.45,3.06]
[1755701216438,148.96,181.53,181.45,3.06]
[1755701216637,5.5094,181.51,181.47,5.5104]
[1755701216843,148.96,181.53,181.45,3.06]
[1755701217036,154.4688,181.53,181.48,5.5098]
[1755701217231,148.96,181.53,181.45,3.06]
[1755701217546,5.5103,181.48,181.37,3.06]
[1755701217745,148.96,181.53,181.37,3.06]
[1755701217943,4.81415887,181.52,181.37,3.06]
[1755701218343,5.5104,181.47,181.37,3.06]
[1755701218537,148.96,181.53,181.37,3.06]
[1755701218743,5.51,181.49,181.44,5.511]
[1755701218946,148.96,181.53,181.37,3.06]
[1755701219541,5.5096,181.5,181.43,5.5114]
[1755701220344,148.96,181.53,181.42,3.06]
[1755701220541,370.52,181.54,181.42,3.06]
[1755701221137,148.88,181.55,181.42,3.06]
[1755701221747,154.388,181.55,181.42,3.06]
[1755701222049,8.13813303,181.63,181.42,3.06]
[1755701222345,6.03184447,181.7,181.46,3.06]
[1755701222346,8.13813303,181.7,181.46,3.06]
[1755701222642,148.84,181.69,181.48,3.06]
[1755701222844,148.84,181.69,181.5,8.13813303]
[1755701223045,148.84,181.69,181.51,3.06]
[1755701224342,154.3438,181.69,181.62,5.5056]
[1755701224542,148.84,181.69,181.57,3.06]
[1755701224943,5.5047,181.66,181.59,5.5067]
[1755701225345,148.84,181.69,181.57,3.06]
[1755701225648,5.505,181.65,181.57,3.06]
[1755701225858,148.84,181.69,181.52,3.06]
[1755701227552,5.5041,181.68,181.52,3.06]
[1755701227753,148.74,181.68,181.52,3.06]
[1755701228052,154.2441,181.68,181.61,5.5061]
[1755701228258,84.76229321,181.74,181.56,3.06]
[1755701228546,5.5033,181.71,181.56,3.06]
[1755701228851,148.72,181.73,181.56,3.06]
[1755701229250,5.5034,181.7,181.56,3.06]
[1755701229447,148.72,181.73,181.56,3.06]
[1755701230147,8.13813303,181.7,181.46,11.0211]
[1755701230354,8.13813303,181.7,181.54,3.06]
[1755701230651,148.7,181.69,181.54,3.06]
[1755701231250,5.5049,181.66,181.54,3.06]
[1755701231451,148.7,181.69,181.54,3.06]
[1755701232455,148.66,181.69,181.54,3.06]
[1755701233055,148.66,181.69,181.66,5.5046]
[1755701233250,84.76229321,181.74,181.61,3.06]
[1755701233452,84.76229321,181.74,181.56,8.13813303]
[1755701233453,84.76229321,181.74,181.7,5.5033]
[1755701233650,84.76229321,181.74,181.65,3.06]
[1755701234050,84.76229321,181.74,181.68,5.5038]
[1755701234247,84.76229321,181.74,181.65,3.06]
[1755701234954,84.76229321,181.74,181.67,5.5042]
[1755701235150,84.76229321,181.74,181.65,3.06]
[1755701235556,84.76229321,181.74,181.67,5.5041]
[1755701235756,84.76229321,181.74,181.6,3.06]
[1755701237457,84.76229321,181.74,181.64,3.06]
[1755701238352,84.76229321,181.74,181.69,5.5036]
[1755701238654,370.06,181.85,181.64,3.06]
[1755701238860,5.4997,181.83,181.64,3.06]
[1755701239060,148.56,181.84,181.71,3.06]
[1755701239959,148.52,181.89,181.77,3.06]
[1755701241251,148.52,181.89,181.72,3.06]
[1755701241458,5.4989,181.85,181.77,5.5012]
[1755701241661,8.13813303,181.87,181.72,3.06]
[1755701242165,8.13813303,181.87,181.69,370.02]
[1755701242366,8.13813303,181.87,181.7,3.06]
[1755701243261,8.13813303,181.77,181.6,3.06]
[1755701243564,148.46,181.76,181.6,3.06]
[1755701244163,148.46,181.76,181.63,5.5054]
[1755701244759,148.46,181.76,181.6,3.06]
[1755701245966,369.92,181.79,181.6,3.06]
[1755701246170,148.4,181.78,181.6,3.06]
[1755701246471,148.4,181.78,181.64,2.94]
[1755701246472,8.13813303,181.77,181.64,2.94]
[1755701247067,369.92,181.79,181.64,2.94]
[1755701248069,369.92,181.79,181.68,2.94]
[1755701248269,0.95738535,181.89,181.68,2.94]
[1755701248270,148.38,181.85,181.68,2.94]
[1755701248473,148.38,181.85,181.77,5.5012]
[1755701248776,148.38,181.85,181.68,2.94]
[1755701249169,148.38,181.85,181.79,5.5006]
[1755701249570,148.38,181.85,181.74,2.94]
[1755701250773,148.38,181.85,181.83,5.4994]
[1755701250973,148.38,181.85,181.78,2.94]
[1755701251173,148.38,181.9,181.73,2.94]
[1755701251771,148.38,181.9,181.76,5.5014]
[1755701251977,8.13813303,181.87,181.68,2.94]
[1755701252970,8.13813303,181.85,181.68,2.94]
[1755701253169,8.13813303,181.87,181.68,2.94]
[1755701253376,148.34,181.86,181.68,2.94]
[1755701254076,148.34,181.86,181.75,5.5018]
[1755701254480,148.34,181.86,181.72,2.94]
[1755701254977,148.34,181.86,181.74,5.5021]
[1755701255277,148.34,181.86,181.72,2.94]
[1755701256074,148.34,181.86,181.81,5.5]
[1755701256276,369.88,181.91,181.76,2.94]
[1755701257289,369.88,181.91,181.82,2.94]
[1755701258294,148.3,181.92,181.82,2.94]
[1755701258798,148.3,181.92,181.84,5.4991]
[1755701258988,148.3,181.92,181.82,2.94]
[1755701259284,148.3,181.92,181.84,5.499]
[1755701259481,148.3,181.92,181.82,2.94]
[1755701259686,148.3,181.92,181.77,2.94]
[1755701260087,6.03184447,182.0,181.77,2.94]
[1755701260291,8.13813303,181.97,181.77,2.94]
[1755701260490,8.13813303,181.97,181.8,2.94]
[1755701260990,148.26,181.99,181.8,2.94]
[1755701261583,8.13813303,182.0,181.85,2.94]
[1755701261789,148.22,181.98,181.85,2.94]
[1755701261990,148.22,181.98,181.9,5.4974]
[1755701262292,148.22,181.98,181.85,2.94]
[1755701263196,25.55776671,182.08,181.84,2.94]
[1755701263197,8.13813303,182.07,181.84,2.94]
[1755701263586,148.22,182.06,181.84,2.94]
[1755701264692,8.13813303,182.07,181.89,2.94]
[1755701264897,148.18,182.06,181.89,2.94]
[1755701265196,148.18,182.06,181.93,5.4963]
[1755701265589,148.18,182.06,181.89,2.94]
[1755701266996,148.18,182.06,181.94,2.94]
[1755701268200,148.18,182.06,181.87,2.94]
[1755701268990,148.18,182.06,181.94,5.4959]
[1755701269195,148.18,182.06,181.87,2.94]
[1755701269597,148.18,182.06,181.95,5.4956]
[1755701270100,148.18,182.06,181.91,2.94]
[1755701270302,148.08,182.05,181.91,2.94]
[1755701270600,148.08,182.05,181.77,148.08]
[1755701270601,148.08,182.05,181.92,2.94]
[1755701271192,148.08,182.05,181.88,19.13393303]
[1755701271193,452.36270568,182.11,181.89,2.94]
[1755701271400,82.74270568,182.11,181.94,2.94]
[1755701271595,82.74270568,182.11,182.1,5.4913]
[1755701271899,82.74270568,182.11,181.99,2.94]
[1755701272102,82.74270568,182.11,181.98,8.13813303]
[1755701272103,148.08,182.17,182.01,2.94]
[1755701272898,148.08,182.17,182.02,62.0]
[1755701273200,148.08,182.17,182.07,5.4921]
[1755701273390,148.08,182.17,182.01,2.94]
[1755701274307,148.08,182.17,182.12,5.4907]
[1755701274597,148.08,182.17,182.04,2.94]
[1755701274798,369.44,182.21,182.04,2.94]
[1755701275001,369.44,182.21,182.11,2.94]
[1755701276494,369.44,182.21,182.13,5.4903]
[1755701276693,369.44,182.21,182.11,2.94]
[1755701277000,369.44,182.21,182.13,5.4903]
[1755701277200,369.44,182.21,182.11,2.94]
[1755701277606,369.44,182.21,182.04,62.0]
[1755701277607,369.44,182.21,182.07,3.1]
[1755701278696,369.44,182.21,182.14,5.4901]
[1755701279308,369.44,182.21,182.07,3.1]
[1755701281103,147.92,182.2,182.07,3.1]
[1755701285110,369.44,182.21,182.07,3.1]
[1755701285315,147.82,182.21,182.07,3.1]
[1755701286115,8.13813303,182.28,182.1,3.1]
[1755701286413,147.82,182.27,182.1,3.1]
[1755701287409,16.51,182.23,182.0,62.0]
[1755701287608,8.13813303,182.24,182.0,3.1]
[1755701287609,16.51,182.18,182.0,3.1]
[1755701287813,8.13813303,182.14,182.0,3.1]
[1755701288112,24.64813303,182.14,181.96,3.1]
[1755701288314,8.13813303,182.09,181.91,3.1]
[1755701288514,147.78,182.08,181.91,3.1]
[1755701288716,24.64813303,182.09,181.91,3.1]
[1755701288910,147.78,182.08,182.02,5.4938]
[1755701289118,147.78,182.08,181.91,19.13233303]
[1755701289418,147.78,182.08,181.92,3.1]
[1755701289613,147.78,182.08,181.94,3.1]
[1755701290112,147.78,182.12,181.96,8.13813303]
[1755701290319,147.78,182.13,181.97,3.1]
[1755701290518,147.78,182.13,182.04,5.4932]
[1755701290718,147.78,182.13,181.97,3.1]
[1755701291718,172.42813303,182.13,181.92,3.1]
[1755701291919,8.13813303,182.08,181.92,3.1]
[1755701292119,8.13813303,182.03,181.86,3.1]
[1755701292325,8.13813303,182.03,181.7,1600.6305]
[1755701292326,164.25,182.02,181.81,3.1]
[1755701292517,8.13813303,181.98,181.81,3.1]
[1755701293222,16.51,181.98,181.76,3.1]
[1755701293421,368.98,182.03,181.76,3.1]
[1755701293422,8.13813303,181.99,181.76,3.1]
[1755701293616,147.74,181.98,181.77,62.0]
[1755701293815,147.76,181.97,181.78,3.1]
[1755701294215,8.13813303,181.99,181.83,3.1]
[1755701294516,368.98,182.03,181.83,3.1]
[1755701294517,147.76,182.0,181.83,3.1]
[1755701294717,147.76,182.0,181.8,3.1]
[1755701294917,147.76,182.0,181.83,3.1]
[1755701295713,147.76,182.0,181.96,5.4955]
[1755701295918,147.76,182.0,181.88,3.1]
[1755701296118,368.98,182.03,181.88,3.1]
[1755701296319,147.74,182.02,181.88,3.1]
[1755701296719,147.8,182.02,181.98,5.495]
[1755701296916,147.78,182.02,181.88,3.1]
[1755701297119,368.98,182.03,181.88,3.1]
[1755701297316,516.76,182.03,181.94,5.4963]
[1755701297517,516.76,182.03,181.83,3.1]
[1755701297726,8.13813303,182.0,181.83,3.1]
[1755701298324,8.13813303,182.0,181.86,5.4988]
[1755701298527,8.13813303,181.95,181.78,3.1]
[1755701298723,147.78,181.94,181.78,3.1]
[1755701299225,147.78,181.94,181.72,368.98]
[1755701299226,147.78,181.94,181.81,5.5001]
[1755701299426,147.78,181.94,181.73,3.1]
[1755701299925,8.13813303,181.95,181.73,3.1]
[1755701300131,147.8,181.94,181.73,3.1]
[1755701300528,8.13813303,181.95,181.73,3.1]
[1755701300824,147.78,181.94,181.73,14.1052]
[1755701301029,147.78,181.94,181.73,11.23813303]
[1755701301233,147.78,181.94,181.74,3.1]
[1755701301424,147.78,181.94,181.76,3.1]
[1755701301824,147.78,181.94,181.83,5.4996]
[1755701302128,8.13813303,181.94,181.76,3.1]
[1755701302322,8.13813303,181.99,181.76,3.1]
[1755701302519,147.78,181.98,181.76,3.1]
[1755701302927,147.78,181.98,181.91,5.497]
[1755701303824,147.78,181.98,181.81,3.1]
[1755701304028,147.82,181.97,181.81,3.1]
[1755701304535,147.82,181.97,181.92,5.4967]
[1755701305035,147.82,181.97,181.93,5.4966]
[1755701305235,147.82,181.97,181.85,3.1]
[1755701306032,368.98,182.03,181.85,3.1]
[1755701306230,368.98,182.03,181.86,2.98]
[1755701306631,368.98,182.03,181.99,5.4948]
[1755701306828,147.82,182.05,181.92,2.98]
[1755701308737,147.82,182.05,181.87,2.98]
[1755701308927,8.13813303,182.04,181.87,2.98]
[1755701309238,24.64813303,182.04,181.87,2.98]
[1755701309437,24.64813303,182.04,181.92,5.4969]
[1755701309630,8.13813303,182.04,181.87,2.98]
[1755701309830,147.8,182.03,181.87,2.98]
[1755701310033,147.8,182.03,181.97,5.4955]
[1755701310635,147.8,182.03,181.96,5.4957]
[1755701310937,147.8,182.03,181.84,2.98]